[Event "*** SCC Grand Prix: Titled Tuesday Blitz"]
[Site "Chess.com"]
[Date "2020.09.29"]
[Round "6"]
[White "RobertoJBM"]
[Black "Parhamov"]
[Result "0-1"]
[WhiteElo "2719"]
[BlackElo "2965"]
[TimeControl "180+1"]
[EndTime "11:04:49 PDT"]
[Termination "Parhamov won on time"]

1. d4 {[%clk 0:03:00.9]} 1... d5 {[%clk 0:02:50.4]} 2. Nf3 {[%clk 0:03:00]} 2...
Nf6 {[%clk 0:02:49.6]} 3. e3 {[%clk 0:02:59.8]} 3... c5 {[%clk 0:02:46.6]} 4. c3
{[%clk 0:02:59.2]} 4... Nbd7 {[%clk 0:02:43.4]} 5. Bd3 {[%clk 0:02:57.5]} 5...
g6 {[%clk 0:02:36.9]} 6. O-O {[%clk 0:02:56.6]} 6... Bg7 {[%clk 0:02:36.6]} 7.
Nbd2 {[%clk 0:02:56.5]} 7... Qc7 {[%clk 0:02:30.5]} 8. Qe2 {[%clk 0:02:53.7]}
8... O-O {[%clk 0:02:22.3]} 9. b3 {[%clk 0:02:43.9]} 9... b6 {[%clk 0:02:22.5]}
10. Bb2 {[%clk 0:02:43.5]} 10... Bb7 {[%clk 0:02:22.4]} 11. Rac1 {[%clk
0:02:43]} 11... Rac8 {[%clk 0:02:22.7]} 12. Rfd1 {[%clk 0:02:40.5]} 12... Rfe8
{[%clk 0:02:22.5]} 13. Ba6 {[%clk 0:02:37.7]} 13... Bxa6 {[%clk 0:02:14.5]} 14.
Qxa6 {[%clk 0:02:38.6]} 14... Nb8 {[%clk 0:02:14.9]} 15. Qd3 {[%clk 0:02:33.3]}
15... Qb7 {[%clk 0:02:15.3]} 16. dxc5 {[%clk 0:02:26.9]} 16... e5 {[%clk
0:02:10.7]} 17. Qe2 {[%clk 0:02:08.8]} 17... bxc5 {[%clk 0:02:10.3]} 18. e4
{[%clk 0:02:01.9]} 18... d4 {[%clk 0:02:09.7]} 19. Ne1 {[%clk 0:01:59.9]} 19...
Bh6 {[%clk 0:02:06.1]} 20. f3 {[%clk 0:01:59.2]} 20... Nbd7 {[%clk 0:01:58.2]}
21. Nd3 {[%clk 0:01:44.7]} 21... Qa6 {[%clk 0:01:57.3]} 22. c4 {[%clk
0:01:40.4]} 22... Nh5 {[%clk 0:01:56.8]} 23. g3 {[%clk 0:01:36.8]} 23... Ng7
{[%clk 0:01:54.9]} 24. Kg2 {[%clk 0:01:33.7]} 24... f5 {[%clk 0:01:53.9]} 25.
Ra1 {[%clk 0:01:27.8]} 25... Be3 {[%clk 0:01:53.2]} 26. Nf1 {[%clk 0:01:25.7]}
26... f4 {[%clk 0:01:47.8]} 27. Nf2 {[%clk 0:00:23.2]} 27... h5 {[%clk
0:01:46.9]} 28. Nh3 {[%clk 0:00:17.7]} 28... Qf6 {[%clk 0:01:46.1]} 29. Nxe3
{[%clk 0:00:15.4]} 29... fxe3 {[%clk 0:01:46.2]} 30. Rf1 {[%clk 0:00:15.4]}
30... Ne6 {[%clk 0:01:45.7]} 31. Rae1 {[%clk 0:00:14.1]} 31... g5 {[%clk
0:01:43.1]} 32. Ng1 {[%clk 0:00:13.8]} 32... Qg6 {[%clk 0:01:43]} 33. Qd3 {[%clk
0:00:13.3]} 33... Rf8 {[%clk 0:01:42.4]} 34. Ne2 {[%clk 0:00:13.2]} 34... Rf7
{[%clk 0:01:42.7]} 35. Bc1 {[%clk 0:00:11.5]} 35... Rcf8 {[%clk 0:01:41.9]} 36.
Bxe3 {[%clk 0:00:11.8]} 36... dxe3 {[%clk 0:01:41.7]} 37. Qxe3 {[%clk
0:00:12.7]} 37... Nd4 {[%clk 0:01:41.7]} 38. Rd1 {[%clk 0:00:08.7]} 38... Nb8
{[%clk 0:01:36.3]} 39. Nc3 {[%clk 0:00:06.6]} 39... Nbc6 {[%clk 0:01:33.9]} 40.
Nd5 {[%clk 0:00:04.6]} 40... Kg7 {[%clk 0:01:34.3]} 41. Rf2 {[%clk 0:00:04.6]}
41... Rxf3 {[%clk 0:01:32.4]} 42. Rxf3 {[%clk 0:00:04.7]} 42... Rxf3 {[%clk
0:01:33.3]} 43. Qxf3 {[%clk 0:00:05.6]} 43... Nxf3 {[%clk 0:01:33.4]} 44. Kxf3
{[%clk 0:00:06.5]} 44... Nd4+ {[%clk 0:01:33.5]} 45. Ke3 {[%clk 0:00:07]} 45...
Qf7 {[%clk 0:01:33.9]} 0-1

[Event "*** SCC Grand Prix: Titled Tuesday Blitz"]
[Site "Chess.com"]
[Date "2020.09.29"]
[Round "6"]
[White "PLAYER_2006_M"]
[Black "Kaslask"]
[Result "1-0"]
[WhiteElo "2558"]
[BlackElo "2350"]
[TimeControl "180+1"]
[EndTime "11:04:49 PDT"]
[Termination "PLAYER_2006_M won by resignation"]

1. d4 {[%clk 0:03:00.8]} 1... Nf6 {[%clk 0:02:59.5]} 2. Nc3 {[%clk 0:02:59.9]}
2... d5 {[%clk 0:02:57.9]} 3. Bf4 {[%clk 0:03:00.1]} 3... c6 {[%clk 0:02:57.2]}
4. e3 {[%clk 0:02:59.7]} 4... Bf5 {[%clk 0:02:54.1]} 5. f3 {[%clk 0:02:59]} 5...
e6 {[%clk 0:02:50.1]} 6. g4 {[%clk 0:02:58.7]} 6... Bg6 {[%clk 0:02:48.8]} 7. h4
{[%clk 0:02:58.4]} 7... h5 {[%clk 0:02:46.9]} 8. g5 {[%clk 0:02:58.3]} 8... Nfd7
{[%clk 0:02:45.4]} 9. Bd3 {[%clk 0:02:58.5]} 9... Bxd3 {[%clk 0:02:37.7]} 10.
Qxd3 {[%clk 0:02:59.4]} 10... g6 {[%clk 0:02:37.2]} 11. O-O-O {[%clk 0:02:59.2]}
11... Qa5 {[%clk 0:02:31.4]} 12. e4 {[%clk 0:02:57.2]} 12... Na6 {[%clk
0:02:30.2]} 13. a3 {[%clk 0:02:53.9]} 13... b5 {[%clk 0:02:24.8]} 14. exd5
{[%clk 0:02:53.2]} 14... cxd5 {[%clk 0:02:14.7]} 15. Qxb5 {[%clk 0:02:50]} 15...
Qxb5 {[%clk 0:01:51.8]} 16. Nxb5 {[%clk 0:02:50.9]} 16... Be7 {[%clk 0:01:48.8]}
17. Ne2 {[%clk 0:02:44.1]} 17... O-O {[%clk 0:01:47.5]} 18. Rd3 {[%clk
0:02:03.7]} 18... Nb6 {[%clk 0:01:44.4]} 19. b3 {[%clk 0:01:55.4]} 19... Rfc8
{[%clk 0:01:40.4]} 20. Kb2 {[%clk 0:01:52.2]} 20... Rc6 {[%clk 0:01:40.1]} 21.
Rc3 {[%clk 0:01:50.9]} 21... Rxc3 {[%clk 0:01:26.8]} 22. Nexc3 {[%clk
0:01:51.8]} 22... Nd7 {[%clk 0:01:19.3]} 23. Re1 {[%clk 0:01:50.1]} 23... Bf8
{[%clk 0:01:16.9]} 24. Na4 {[%clk 0:01:44.8]} 24... Bg7 {[%clk 0:01:14.5]} 25.
Re3 {[%clk 0:01:32.9]} 25... Ndc5 {[%clk 0:01:13.1]} 26. Nxc5 {[%clk 0:01:32.5]}
26... Nxc5 {[%clk 0:01:12.4]} 27. Rc3 {[%clk 0:01:31.3]} 27... a6 {[%clk
0:01:08.4]} 28. Rxc5 {[%clk 0:01:27.1]} 28... axb5 {[%clk 0:01:06.6]} 29. Be5
{[%clk 0:01:26.5]} 29... Bf8 {[%clk 0:01:02.7]} 30. Rxb5 {[%clk 0:01:23.7]}
30... Bxa3+ {[%clk 0:01:02.2]} 31. Kb1 {[%clk 0:01:22.8]} 31... Kf8 {[%clk
0:00:57.3]} 32. b4 {[%clk 0:01:18.5]} 32... Ke8 {[%clk 0:00:55.8]} 33. c3 {[%clk
0:01:17.8]} 33... Kd7 {[%clk 0:00:47]} 34. Rb7+ {[%clk 0:01:15]} 34... Kc6
{[%clk 0:00:46.8]} 35. Rxf7 {[%clk 0:01:10.9]} 35... Kb5 {[%clk 0:00:46.7]} 36.
Kc2 {[%clk 0:01:10.4]} 36... Rc8 {[%clk 0:00:40.6]} 37. Rb7+ {[%clk 0:01:06.6]}
37... Ka6 {[%clk 0:00:39.8]} 38. Rc7 {[%clk 0:01:05.5]} 38... Rxc7 {[%clk
0:00:37.7]} 39. Bxc7 {[%clk 0:01:06.4]} 39... Kb5 {[%clk 0:00:37.5]} 40. Bf4
{[%clk 0:00:55.2]} 40... Kc4 {[%clk 0:00:36.9]} 41. Be3 {[%clk 0:00:55.4]} 41...
Kb5 {[%clk 0:00:36]} 42. Kb3 {[%clk 0:00:55.3]} 1-0

[Event "*** SCC Grand Prix: Titled Tuesday Blitz"]
[Site "Chess.com"]
[Date "2020.09.29"]
[Round "6"]
[White "lachesisQ"]
[Black "rasmussvane"]
[Result "1-0"]
[WhiteElo "3117"]
[BlackElo "2900"]
[TimeControl "180+1"]
[EndTime "11:04:55 PDT"]
[Termination "lachesisQ won by resignation"]

1. b3 {[%clk 0:03:00.9]} 1... d5 {[%clk 0:02:59.3]} 2. Bb2 {[%clk 0:03:00.7]}
2... Bf5 {[%clk 0:02:59.6]} 3. d3 {[%clk 0:03:00.5]} 3... e6 {[%clk 0:02:59.9]}
4. Nd2 {[%clk 0:02:59.8]} 4... h6 {[%clk 0:02:59.8]} 5. g3 {[%clk 0:03:00]} 5...
Nf6 {[%clk 0:02:59]} 6. Bg2 {[%clk 0:03:00.2]} 6... Be7 {[%clk 0:02:57.6]} 7. e4
{[%clk 0:02:57.9]} 7... Bh7 {[%clk 0:02:57.7]} 8. Nh3 {[%clk 0:02:57.5]} 8...
O-O {[%clk 0:02:56.7]} 9. O-O {[%clk 0:02:57.1]} 9... c5 {[%clk 0:02:56.3]} 10.
exd5 {[%clk 0:02:55.5]} 10... exd5 {[%clk 0:02:24.5]} 11. Nf4 {[%clk 0:02:54.1]}
11... Nc6 {[%clk 0:02:15.2]} 12. Re1 {[%clk 0:02:54]} 12... Rc8 {[%clk
0:02:08.2]} 13. Nf3 {[%clk 0:02:52]} 13... g5 {[%clk 0:02:02.5]} 14. Ne2 {[%clk
0:02:47.6]} 14... Bd6 {[%clk 0:01:59.3]} 15. h4 {[%clk 0:02:38.2]} 15... g4
{[%clk 0:01:58.1]} 16. Nh2 {[%clk 0:02:29]} 16... d4 {[%clk 0:01:47.1]} 17. Bc1
{[%clk 0:02:28]} 17... h5 {[%clk 0:01:43.6]} 18. Bg5 {[%clk 0:02:27]} 18... Be5
{[%clk 0:01:13.6]} 19. f3 {[%clk 0:01:59.8]} 19... gxf3 {[%clk 0:00:58.1]} 20.
Nxf3 {[%clk 0:01:59.1]} 20... Qd6 {[%clk 0:00:58.2]} 21. Nxe5 {[%clk 0:01:42.5]}
21... Nxe5 {[%clk 0:00:59.1]} 22. Nf4 {[%clk 0:01:42.2]} 22... Bg6 {[%clk
0:00:45.4]} 23. Bxf6 {[%clk 0:01:35.7]} 23... Qxf6 {[%clk 0:00:44.6]} 24. Nxh5
{[%clk 0:01:36.4]} 24... Qf5 {[%clk 0:00:42]} 25. Nf4 {[%clk 0:01:31.9]} 25...
Rfe8 {[%clk 0:00:40.6]} 26. Bh3 {[%clk 0:01:29.4]} 26... Qf6 {[%clk 0:00:35.4]}
27. Bxc8 {[%clk 0:01:29]} 27... Rxc8 {[%clk 0:00:36.3]} 28. Qe2 {[%clk
0:01:28.9]} 28... Re8 {[%clk 0:00:32.8]} 29. Qg2 {[%clk 0:01:12.5]} 29... Bf5
{[%clk 0:00:29.7]} 30. Qxb7 {[%clk 0:01:05.2]} 30... Bg4 {[%clk 0:00:28.8]} 31.
Rf1 {[%clk 0:01:00.2]} 31... Qg7 {[%clk 0:00:26.9]} 32. Qg2 {[%clk 0:00:51.2]}
32... a5 {[%clk 0:00:24.5]} 33. Rae1 {[%clk 0:00:50.9]} 33... Nf3+ {[%clk
0:00:24.6]} 34. Qxf3 {[%clk 0:00:49.7]} 34... Bxf3 {[%clk 0:00:07.6]} 35. Rxe8+
{[%clk 0:00:49.3]} 35... Kh7 {[%clk 0:00:08]} 36. Rxf3 {[%clk 0:00:49.6]} 1-0

[Event "*** SCC Grand Prix: Titled Tuesday Blitz"]
[Site "Chess.com"]
[Date "2020.09.29"]
[Round "6"]
[White "youngKID"]
[Black "AleksanderHnydiuk"]
[Result "1-0"]
[WhiteElo "2774"]
[BlackElo "2556"]
[TimeControl "180+1"]
[EndTime "11:04:55 PDT"]
[Termination "youngKID won on time"]

1. Nf3 {[%clk 0:03:00.9]} 1... Nf6 {[%clk 0:02:58.8]} 2. d4 {[%clk 0:03:01.8]}
2... g6 {[%clk 0:02:57.6]} 3. Bg5 {[%clk 0:03:02.3]} 3... Bg7 {[%clk 0:02:57.5]}
4. Nbd2 {[%clk 0:03:02.9]} 4... c5 {[%clk 0:02:55.8]} 5. e3 {[%clk 0:03:02.7]}
5... cxd4 {[%clk 0:02:40.1]} 6. exd4 {[%clk 0:03:02.6]} 6... O-O {[%clk
0:02:39.8]} 7. Bd3 {[%clk 0:03:02]} 7... b6 {[%clk 0:02:38.9]} 8. O-O {[%clk
0:02:56.4]} 8... Bb7 {[%clk 0:02:37.6]} 9. Re1 {[%clk 0:02:56.8]} 9... d6 {[%clk
0:02:32.8]} 10. c4 {[%clk 0:02:51.8]} 10... Nc6 {[%clk 0:01:48.4]} 11. Rc1
{[%clk 0:02:47.8]} 11... Nd7 {[%clk 0:01:36.2]} 12. d5 {[%clk 0:02:46.8]} 12...
Nce5 {[%clk 0:01:36]} 13. Nxe5 {[%clk 0:02:44.2]} 13... Nxe5 {[%clk 0:01:36.9]}
14. Bf1 {[%clk 0:02:42.8]} 14... Re8 {[%clk 0:01:24.9]} 15. Nb3 {[%clk
0:02:35.5]} 15... h6 {[%clk 0:00:59.2]} 16. Be3 {[%clk 0:02:32.6]} 16... e6
{[%clk 0:00:55.3]} 17. dxe6 {[%clk 0:02:31.5]} 17... Rxe6 {[%clk 0:00:52.2]} 18.
Nd4 {[%clk 0:02:31.4]} 18... Re8 {[%clk 0:00:51.1]} 19. Nb5 {[%clk 0:02:23.1]}
19... Re6 {[%clk 0:00:45.1]} 20. b3 {[%clk 0:02:13.2]} 20... Qd7 {[%clk
0:00:42.5]} 21. Qd2 {[%clk 0:02:03.5]} 21... Kh7 {[%clk 0:00:36.4]} 22. f4
{[%clk 0:01:37.8]} 22... Ng4 {[%clk 0:00:33.7]} 23. Bd4 {[%clk 0:01:37.7]} 23...
Nf6 {[%clk 0:00:21.6]} 24. Rxe6 {[%clk 0:01:34.1]} 24... fxe6 {[%clk 0:00:20.6]}
25. Rd1 {[%clk 0:01:12.5]} 25... Ne4 {[%clk 0:00:16.7]} 26. Qc2 {[%clk
0:01:12.7]} 26... a6 {[%clk 0:00:14.1]} 27. Bxg7 {[%clk 0:01:11]} 27... Qxg7
{[%clk 0:00:15]} 28. Nxd6 {[%clk 0:01:10]} 28... Rd8 {[%clk 0:00:10.3]} 29. Nxb7
{[%clk 0:01:03.7]} 29... Rxd1 {[%clk 0:00:07]} 30. Qxd1 {[%clk 0:01:04.6]} 30...
Qxb7 {[%clk 0:00:06.1]} 31. Qd4 {[%clk 0:01:04.2]} 31... b5 {[%clk 0:00:02.9]}
32. cxb5 {[%clk 0:01:00.4]} 32... axb5 {[%clk 0:00:03.8]} 33. Bd3 {[%clk
0:01:00.5]} 33... Nd2 {[%clk 0:00:03.2]} 34. Qe3 {[%clk 0:00:56.2]} 1-0

[Event "*** SCC Grand Prix: Titled Tuesday Blitz"]
[Site "Chess.com"]
[Date "2020.09.29"]
[Round "6"]
[White "Chuchofrio1"]
[Black "PauloCesarCosta_sad"]
[Result "1-0"]
[WhiteElo "2404"]
[BlackElo "2300"]
[TimeControl "180+1"]
[EndTime "11:05:02 PDT"]
[Termination "Chuchofrio1 won on time"]

1. d4 {[%clk 0:03:00.9]} 1... d5 {[%clk 0:02:59.5]} 2. c4 {[%clk 0:03:00.9]}
2... c6 {[%clk 0:02:57.5]} 3. cxd5 {[%clk 0:03:00.6]} 3... cxd5 {[%clk 0:02:57]}
4. Bf4 {[%clk 0:03:01.2]} 4... e6 {[%clk 0:02:56.3]} 5. Nc3 {[%clk 0:02:58.4]}
5... Bd6 {[%clk 0:02:56.2]} 6. Bxd6 {[%clk 0:02:57.8]} 6... Qxd6 {[%clk
0:02:55.8]} 7. e3 {[%clk 0:02:58.2]} 7... Bd7 {[%clk 0:02:54]} 8. Bd3 {[%clk
0:02:57.8]} 8... Nf6 {[%clk 0:02:53.9]} 9. f4 {[%clk 0:02:57.7]} 9... O-O {[%clk
0:02:52.5]} 10. Nf3 {[%clk 0:02:57.8]} 10... Nc6 {[%clk 0:02:46.8]} 11. Rc1
{[%clk 0:02:56.9]} 11... Rac8 {[%clk 0:02:45.6]} 12. Ne5 {[%clk 0:02:56.5]}
12... Ne7 {[%clk 0:02:23.2]} 13. O-O {[%clk 0:02:55]} 13... Ng6 {[%clk
0:02:21.8]} 14. Qf3 {[%clk 0:02:45.4]} 14... Qb6 {[%clk 0:01:59.1]} 15. Rc2
{[%clk 0:02:29.1]} 15... Bc6 {[%clk 0:01:51.9]} 16. Nxc6 {[%clk 0:02:19.8]}
16... Rxc6 {[%clk 0:01:46.1]} 17. g4 {[%clk 0:02:16.3]} 17... a6 {[%clk
0:01:22.8]} 18. Rcf2 {[%clk 0:02:10.8]} 18... Qc7 {[%clk 0:01:14.7]} 19. g5
{[%clk 0:02:08.3]} 19... Ne8 {[%clk 0:01:08.1]} 20. Qh5 {[%clk 0:02:07.1]} 20...
Nd6 {[%clk 0:00:57.3]} 21. Rf3 {[%clk 0:02:03.9]} 21... Rd8 {[%clk 0:00:44.6]}
22. Rh3 {[%clk 0:02:03.2]} 22... Nf8 {[%clk 0:00:44.4]} 23. Bxh7+ {[%clk
0:02:02.8]} 23... Nxh7 {[%clk 0:00:38.3]} 24. Qxh7+ {[%clk 0:02:02.7]} 24... Kf8
{[%clk 0:00:39.2]} 25. Qh8+ {[%clk 0:02:02.6]} 25... Ke7 {[%clk 0:00:38.9]} 26.
Qxg7 {[%clk 0:02:02.6]} 26... Nf5 {[%clk 0:00:37.1]} 27. Qf6+ {[%clk 0:02:01.6]}
27... Kd7 {[%clk 0:00:37]} 28. Nxd5 {[%clk 0:01:52.3]} 28... exd5 {[%clk
0:00:35.8]} 29. Qxf5+ {[%clk 0:01:52.3]} 29... Re6 {[%clk 0:00:35.8]} 30. Qxd5+
{[%clk 0:01:50.9]} 30... Qd6 {[%clk 0:00:36.2]} 31. Qxb7+ {[%clk 0:01:49.1]}
31... Qc7 {[%clk 0:00:36.6]} 32. Qxc7+ {[%clk 0:01:45.4]} 32... Kxc7 {[%clk
0:00:37.5]} 33. Kf2 {[%clk 0:01:41.8]} 33... Rb6 {[%clk 0:00:35.8]} 34. Rc1+
{[%clk 0:01:39.1]} 34... Kb7 {[%clk 0:00:35.7]} 35. Rc2 {[%clk 0:01:38.2]} 35...
Rd5 {[%clk 0:00:35.4]} 36. Rh7 {[%clk 0:01:37.7]} 36... Rd7 {[%clk 0:00:35.1]}
37. h4 {[%clk 0:01:34.6]} 37... Rbd6 {[%clk 0:00:10.6]} 38. h5 {[%clk
0:01:32.4]} 38... a5 {[%clk 0:00:10.7]} 39. h6 {[%clk 0:01:32.1]} 39... Rg6
{[%clk 0:00:09.5]} 40. Rg7 {[%clk 0:01:29.6]} 40... Rdd6 {[%clk 0:00:07.9]} 41.
Rxg6 {[%clk 0:01:25.3]} 41... Rxg6 {[%clk 0:00:07.1]} 42. h7 {[%clk 0:01:24.7]}
42... Kb6 {[%clk 0:00:05]} 43. h8=Q {[%clk 0:01:23.5]} 43... a4 {[%clk
0:00:05.9]} 44. Qb8+ {[%clk 0:01:23]} 44... Ka6 {[%clk 0:00:03.1]} 45. Rc7
{[%clk 0:01:21]} 1-0

[Event "*** SCC Grand Prix: Titled Tuesday Blitz"]
[Site "Chess.com"]
[Date "2020.09.29"]
[Round "6"]
[White "vladislavkovalev"]
[Black "Indianlad"]
[Result "1-0"]
[WhiteElo "2849"]
[BlackElo "2928"]
[TimeControl "180+1"]
[EndTime "11:05:04 PDT"]
[Termination "vladislavkovalev won by checkmate"]

1. e4 {[%clk 0:03:00.9]} 1... c6 {[%clk 0:03:00.7]} 2. Nc3 {[%clk 0:02:59.8]}
2... d5 {[%clk 0:03:01.3]} 3. Nf3 {[%clk 0:03:00.7]} 3... Bg4 {[%clk 0:03:01.4]}
4. h3 {[%clk 0:03:00.9]} 4... Bxf3 {[%clk 0:03:01.8]} 5. Qxf3 {[%clk 0:03:01.8]}
5... e6 {[%clk 0:03:02.2]} 6. Be2 {[%clk 0:03:01.9]} 6... Bc5 {[%clk 0:03:01.8]}
7. O-O {[%clk 0:03:02]} 7... Ne7 {[%clk 0:03:01.6]} 8. Rd1 {[%clk 0:03:02.3]}
8... Bd4 {[%clk 0:03:01.7]} 9. Bf1 {[%clk 0:02:53.3]} 9... O-O {[%clk
0:03:00.8]} 10. exd5 {[%clk 0:02:52.9]} 10... exd5 {[%clk 0:03:00.8]} 11. Ne2
{[%clk 0:02:52.1]} 11... Bb6 {[%clk 0:02:51.9]} 12. d4 {[%clk 0:02:52.6]} 12...
Nd7 {[%clk 0:02:52]} 13. c3 {[%clk 0:02:52.2]} 13... Nf6 {[%clk 0:02:49.4]} 14.
Ng3 {[%clk 0:02:51]} 14... Ne8 {[%clk 0:02:38.4]} 15. Bd3 {[%clk 0:02:49.8]}
15... Nd6 {[%clk 0:02:36.6]} 16. Bf4 {[%clk 0:02:30.6]} 16... f5 {[%clk
0:02:32.7]} 17. Bxd6 {[%clk 0:02:15.1]} 17... Qxd6 {[%clk 0:02:33.6]} 18. Re1
{[%clk 0:02:15.5]} 18... Bc7 {[%clk 0:02:30.6]} 19. Re2 {[%clk 0:02:10.7]} 19...
Ng6 {[%clk 0:02:20.7]} 20. Rae1 {[%clk 0:01:52.4]} 20... Nf4 {[%clk 0:02:17.5]}
21. Re5 {[%clk 0:01:48.4]} 21... Nxd3 {[%clk 0:02:07.7]} 22. Qxd3 {[%clk
0:01:49.3]} 22... g6 {[%clk 0:02:06.5]} 23. Nf1 {[%clk 0:01:42.6]} 23... Rf7
{[%clk 0:02:03.2]} 24. Re6 {[%clk 0:01:38.5]} 24... Qd7 {[%clk 0:02:01.6]} 25.
Nd2 {[%clk 0:01:36.2]} 25... Bd6 {[%clk 0:01:57.7]} 26. Nf3 {[%clk 0:01:35.8]}
26... Re7 {[%clk 0:01:58.1]} 27. Rxe7 {[%clk 0:01:34]} 27... Bxe7 {[%clk
0:01:59]} 28. h4 {[%clk 0:01:30.8]} 28... Bf6 {[%clk 0:01:56.9]} 29. Qe3 {[%clk
0:01:28.6]} 29... Kf7 {[%clk 0:01:50.9]} 30. Qh6 {[%clk 0:01:16.8]} 30... Kg8
{[%clk 0:01:50.9]} 31. h5 {[%clk 0:01:11.5]} 31... Qf7 {[%clk 0:01:44.9]} 32.
Ne5 {[%clk 0:01:04]} 32... Bxe5 {[%clk 0:01:44.8]} 33. Rxe5 {[%clk 0:01:04.9]}
33... Re8 {[%clk 0:01:42.7]} 34. Qg5 {[%clk 0:00:54.4]} 34... Rxe5 {[%clk
0:01:29.2]} 35. dxe5 {[%clk 0:00:55.3]} 35... Qe6 {[%clk 0:01:29.9]} 36. Qd8+
{[%clk 0:00:50.9]} 36... Kg7 {[%clk 0:01:20.6]} 37. Qc7+ {[%clk 0:00:46.4]}
37... Kf8 {[%clk 0:01:00.2]} 38. Qxh7 {[%clk 0:00:29.4]} 38... gxh5 {[%clk
0:00:54.6]} 39. f4 {[%clk 0:00:27.9]} 39... Qf7 {[%clk 0:00:42.4]} 40. Qh8+
{[%clk 0:00:24]} 40... Ke7 {[%clk 0:00:42.8]} 41. Qb8 {[%clk 0:00:22.3]} 41...
Ke6 {[%clk 0:00:42.9]} 42. Qd6# {[%clk 0:00:21.9]} 1-0

[Event "*** SCC Grand Prix: Titled Tuesday Blitz"]
[Site "Chess.com"]
[Date "2020.09.29"]
[Round "6"]
[White "Schandenfreude"]
[Black "SanchezKelvin"]
[Result "0-1"]
[WhiteElo "2561"]
[BlackElo "2408"]
[TimeControl "180+1"]
[EndTime "11:05:04 PDT"]
[Termination "SanchezKelvin won by resignation"]

1. d4 {[%clk 0:03:00.9]} 1... Nf6 {[%clk 0:02:59.4]} 2. Bf4 {[%clk 0:02:56.4]}
2... d5 {[%clk 0:02:59.3]} 3. e3 {[%clk 0:02:56]} 3... c5 {[%clk 0:02:59.3]} 4.
c3 {[%clk 0:02:55.8]} 4... Nc6 {[%clk 0:02:59.3]} 5. Nd2 {[%clk 0:02:54.6]} 5...
Qb6 {[%clk 0:02:58.8]} 6. Qb3 {[%clk 0:02:47.3]} 6... c4 {[%clk 0:02:58.8]} 7.
Qc2 {[%clk 0:02:45.9]} 7... Nh5 {[%clk 0:02:57.6]} 8. Bg5 {[%clk 0:02:34.6]}
8... h6 {[%clk 0:02:57.1]} 9. Bh4 {[%clk 0:02:34.7]} 9... g5 {[%clk 0:02:56.1]}
10. Be2 {[%clk 0:02:26.7]} 10... Ng7 {[%clk 0:02:55.3]} 11. Bg3 {[%clk 0:02:24]}
11... Bf5 {[%clk 0:02:50.6]} 12. e4 {[%clk 0:02:07.9]} 12... Bh7 {[%clk
0:02:50.1]} 13. Qc1 {[%clk 0:02:04.6]} 13... Bxe4 {[%clk 0:02:45]} 14. Nxe4
{[%clk 0:02:02.7]} 14... dxe4 {[%clk 0:02:43]} 15. Bxc4 {[%clk 0:02:00]} 15...
f5 {[%clk 0:02:42.4]} 16. f4 {[%clk 0:01:43.6]} 16... gxf4 {[%clk 0:02:21.8]}
17. Bxf4 {[%clk 0:01:43.6]} 17... e5 {[%clk 0:02:19.2]} 18. dxe5 {[%clk
0:01:05.5]} 18... O-O-O {[%clk 0:01:40.2]} 19. Nh3 {[%clk 0:00:50.4]} 19... Nh5
{[%clk 0:01:24.5]} 20. Be3 {[%clk 0:00:14.3]} 20... Bc5 {[%clk 0:01:17.7]} 21.
Bxc5 {[%clk 0:00:14.4]} 21... Qxc5 {[%clk 0:01:16.9]} 22. Be2 {[%clk 0:00:15]}
22... Nxe5 {[%clk 0:01:08.5]} 23. Qc2 {[%clk 0:00:08.8]} 23... Nd3+ {[%clk
0:01:02]} 24. Bxd3 {[%clk 0:00:08.7]} 24... Rxd3 {[%clk 0:01:01.2]} 25. Qf2
{[%clk 0:00:06.5]} 25... Re3+ {[%clk 0:00:33.7]} 26. Kf1 {[%clk 0:00:06.1]}
26... f4 {[%clk 0:00:30.4]} 27. Nxf4 {[%clk 0:00:05.4]} 27... Nxf4 {[%clk
0:00:26.8]} 28. Qxf4 {[%clk 0:00:05.5]} 28... Rf8 {[%clk 0:00:26.3]} 0-1

[Event "*** SCC Grand Prix: Titled Tuesday Blitz"]
[Site "Chess.com"]
[Date "2020.09.29"]
[Round "6"]
[White "hungrycaterpillar4"]
[Black "mamey78"]
[Result "1-0"]
[WhiteElo "2622"]
[BlackElo "2408"]
[TimeControl "180+1"]
[EndTime "11:05:07 PDT"]
[Termination "hungrycaterpillar4 won on time"]

1. d4 {[%clk 0:02:50.6]} 1... d5 {[%clk 0:02:59.8]} 2. Bf4 {[%clk 0:02:50.7]}
2... Nf6 {[%clk 0:02:58.8]} 3. e3 {[%clk 0:02:51.1]} 3... c5 {[%clk 0:02:59]} 4.
Nf3 {[%clk 0:02:51]} 4... e6 {[%clk 0:02:59]} 5. c3 {[%clk 0:02:48.7]} 5... Bd6
{[%clk 0:02:58.8]} 6. Bg3 {[%clk 0:02:49.2]} 6... Qc7 {[%clk 0:02:58.6]} 7. dxc5
{[%clk 0:02:46.5]} 7... Qxc5 {[%clk 0:02:57.7]} 8. Nbd2 {[%clk 0:02:47.1]} 8...
O-O {[%clk 0:02:56]} 9. Bd3 {[%clk 0:02:47.6]} 9... Nbd7 {[%clk 0:02:51.6]} 10.
Qe2 {[%clk 0:02:47.4]} 10... e5 {[%clk 0:02:40]} 11. e4 {[%clk 0:02:46.9]} 11...
dxe4 {[%clk 0:02:37]} 12. Bxe4 {[%clk 0:02:42.3]} 12... Re8 {[%clk 0:02:31]} 13.
Rd1 {[%clk 0:02:40]} 13... Qc7 {[%clk 0:02:13.5]} 14. O-O {[%clk 0:02:37.6]}
14... Nc5 {[%clk 0:02:05.5]} 15. Rfe1 {[%clk 0:02:37.3]} 15... Bg4 {[%clk
0:02:04.6]} 16. h3 {[%clk 0:02:34.5]} 16... Bh5 {[%clk 0:02:04.1]} 17. Bh4
{[%clk 0:02:29.3]} 17... Nfxe4 {[%clk 0:02:02.4]} 18. Nxe4 {[%clk 0:02:30.2]}
18... Nxe4 {[%clk 0:01:52.2]} 19. Qxe4 {[%clk 0:02:30]} 19... Bf8 {[%clk
0:01:42]} 20. Rd5 {[%clk 0:02:07.1]} 20... Bg6 {[%clk 0:01:19.5]} 21. Qg4 {[%clk
0:02:02.2]} 21... f5 {[%clk 0:01:16.6]} 22. Qa4 {[%clk 0:02:01.9]} 22... e4
{[%clk 0:01:14.7]} 23. Ng5 {[%clk 0:01:41.7]} 23... Rad8 {[%clk 0:00:56.6]} 24.
Ne6 {[%clk 0:01:35.4]} 24... Rxe6 {[%clk 0:00:47.7]} 25. Rxd8 {[%clk 0:01:35.2]}
25... f4 {[%clk 0:00:42.3]} 26. Red1 {[%clk 0:01:19.3]} 26... e3 {[%clk
0:00:36.2]} 27. fxe3 {[%clk 0:01:11.3]} 27... fxe3 {[%clk 0:00:37.1]} 28. Rf1
{[%clk 0:00:50.7]} 28... Rf6 {[%clk 0:00:10]} 29. Bxf6 {[%clk 0:00:48.9]} 29...
e2 {[%clk 0:00:09]} 30. Re1 {[%clk 0:00:42.9]} 30... gxf6 {[%clk 0:00:08.7]} 31.
Rd2 {[%clk 0:00:41.6]} 31... Qc5+ {[%clk 0:00:08.6]} 32. Kh1 {[%clk 0:00:40.6]}
1-0